[Event "Early-Titled-Tuesday-Blitz-October-03-2023"]
[Site "Chess.com"]
[Date "2023.10.03"]
[Round "7"]
[White "AnaKuchava"]
[Black "maurovargas01"]
[Result "1-0"]
[WhiteElo "2240"]
[BlackElo "1900"]
[TimeControl "180+1"]
[EndTime "9:16:57 PDT"]
[Termination "AnaKuchava won on time"]

1. d4 {[%clk 0:03:00.9]} 1... d5 {[%clk 0:02:44]} 2. Nf3 {[%clk 0:02:58.5]} 2...
Nf6 {[%clk 0:02:13.4]} 3. c4 {[%clk 0:02:57]} 3... c6 {[%clk 0:02:05.5]} 4. Qb3
{[%clk 0:02:55.7]} 4... e6 {[%clk 0:01:50.1]} 5. Bg5 {[%clk 0:02:52.7]} 5...
Nbd7 {[%clk 0:01:17.4]} 6. e3 {[%clk 0:02:51.1]} 6... h6 {[%clk 0:01:15.7]} 7.
Bh4 {[%clk 0:02:49.3]} 7... Bd6 {[%clk 0:01:15.1]} 8. Nc3 {[%clk 0:02:48.3]}
8... g5 {[%clk 0:01:11.4]} 9. Bg3 {[%clk 0:02:37.6]} 9... Bxg3 {[%clk
0:01:09.5]} 10. hxg3 {[%clk 0:02:38.5]} 10... Qb6 {[%clk 0:00:54.1]} 11. Nxg5
{[%clk 0:02:36.3]} 11... Qd8 {[%clk 0:00:30.3]} 12. Nf3 {[%clk 0:02:31.9]} 12...
Ng4 {[%clk 0:00:18]} 13. Bd3 {[%clk 0:02:30]} 13... Ndf6 {[%clk 0:00:14.9]} 14.
e4 {[%clk 0:02:11]} 14... dxe4 {[%clk 0:00:11.3]} 15. Nxe4 {[%clk 0:02:11.9]}
1-0

[Event "Early-Titled-Tuesday-Blitz-October-03-2023"]
[Site "Chess.com"]
[Date "2023.10.03"]
[Round "7"]
[White "Sergey85Rodchenkov"]
[Black "zozik"]
[Result "1-0"]
[WhiteElo "2525"]
[BlackElo "2336"]
[TimeControl "180+1"]
[EndTime "9:17:09 PDT"]
[Termination "Sergey85Rodchenkov won by resignation"]

1. e4 {[%clk 0:02:57.7]} 1... e6 {[%clk 0:02:58.6]} 2. d4 {[%clk 0:02:57.4]}
2... d5 {[%clk 0:02:59.2]} 3. Nc3 {[%clk 0:02:57.9]} 3... Nf6 {[%clk 0:02:57.3]}
4. e5 {[%clk 0:02:54.4]} 4... Nfd7 {[%clk 0:02:56.6]} 5. f4 {[%clk 0:02:54.1]}
5... c5 {[%clk 0:02:57.5]} 6. Nf3 {[%clk 0:02:54.6]} 6... Nc6 {[%clk 0:02:55.1]}
7. Be3 {[%clk 0:02:55]} 7... a6 {[%clk 0:02:54.2]} 8. Ne2 {[%clk 0:02:34.5]}
8... b5 {[%clk 0:02:50.3]} 9. c3 {[%clk 0:02:32.2]} 9... b4 {[%clk 0:02:49.7]}
10. cxb4 {[%clk 0:02:30.7]} 10... cxd4 {[%clk 0:02:47.6]} 11. Nexd4 {[%clk
0:02:29.8]} 11... Bxb4+ {[%clk 0:02:48]} 12. Kf2 {[%clk 0:02:30]} 12... Nxd4
{[%clk 0:02:39.9]} 13. Bxd4 {[%clk 0:02:30.9]} 13... O-O {[%clk 0:02:36.9]} 14.
Rc1 {[%clk 0:02:30.9]} 14... Bb7 {[%clk 0:02:35.3]} 15. Qb3 {[%clk 0:02:21]}
15... Qa5 {[%clk 0:01:45.3]} 16. a3 {[%clk 0:01:56.6]} 16... Bc5 {[%clk
0:01:42.6]} 17. Qxb7 {[%clk 0:01:37.2]} 17... Bxd4+ {[%clk 0:01:41.3]} 18. Nxd4
{[%clk 0:01:38.1]} 18... Qd2+ {[%clk 0:01:39.8]} 19. Ne2 {[%clk 0:01:38.2]}
19... Rfd8 {[%clk 0:01:17.7]} 20. Qb4 {[%clk 0:01:17]} 20... Qd3 {[%clk
0:01:16.6]} 21. Nd4 {[%clk 0:01:10.4]} 21... Qe4 {[%clk 0:01:13.1]} 22. Nc6
{[%clk 0:01:07.1]} 1-0

[Event "Early-Titled-Tuesday-Blitz-October-03-2023"]
[Site "Chess.com"]
[Date "2023.10.03"]
[Round "7"]
[White "amylazy"]
[Black "a-z30"]
[Result "0-1"]
[WhiteElo "2376"]
[BlackElo "2507"]
[TimeControl "180+1"]
[EndTime "9:17:10 PDT"]
[Termination "a-z30 won by resignation"]

1. d4 {[%clk 0:03:00.9]} 1... Nf6 {[%clk 0:02:58.8]} 2. Nf3 {[%clk 0:02:59.8]}
2... e6 {[%clk 0:02:59]} 3. e3 {[%clk 0:02:57.5]} 3... c5 {[%clk 0:02:53.3]} 4.
Bd3 {[%clk 0:02:56.7]} 4... b6 {[%clk 0:02:52.7]} 5. O-O {[%clk 0:02:45.3]} 5...
Be7 {[%clk 0:02:51.6]} 6. c4 {[%clk 0:02:38.9]} 6... Bb7 {[%clk 0:02:48.1]} 7.
Nc3 {[%clk 0:02:38.8]} 7... cxd4 {[%clk 0:02:41.7]} 8. exd4 {[%clk 0:02:38.6]}
8... d5 {[%clk 0:02:41.4]} 9. Nxd5 {[%clk 0:02:39.5]} 9... exd5 {[%clk
0:02:40.6]} 10. cxd5 {[%clk 0:02:40.2]} 10... O-O {[%clk 0:02:36.7]} 11. Bf4
{[%clk 0:02:34.1]} 11... Nxd5 {[%clk 0:02:34.7]} 12. Bg3 {[%clk 0:02:34.1]}
12... Nd7 {[%clk 0:02:33.6]} 13. Re1 {[%clk 0:02:33.2]} 13... N7f6 {[%clk
0:02:32.8]} 14. Ne5 {[%clk 0:02:31.6]} 14... Rc8 {[%clk 0:02:31]} 15. a3 {[%clk
0:02:28.2]} 15... Re8 {[%clk 0:02:30.6]} 16. Bf5 {[%clk 0:02:27.2]} 16... Rc7
{[%clk 0:02:08.9]} 17. Qd3 {[%clk 0:02:01.8]} 17... g6 {[%clk 0:02:08.2]} 18.
Nxf7 {[%clk 0:01:59.5]} 18... Kxf7 {[%clk 0:02:00.5]} 19. Be6+ {[%clk
0:01:59.8]} 19... Kg7 {[%clk 0:01:57.6]} 20. Bxc7 {[%clk 0:01:59.6]} 20... Nxc7
{[%clk 0:01:46.2]} 21. Bb3 {[%clk 0:01:58.2]} 21... Bd6 {[%clk 0:01:41.2]} 22.
h3 {[%clk 0:01:56.5]} 22... Bd5 {[%clk 0:01:33.4]} 23. Ba4 {[%clk 0:01:55.3]}
23... Re4 {[%clk 0:01:28.6]} 24. f3 {[%clk 0:01:52.4]} 24... Rxe1+ {[%clk
0:01:25.4]} 25. Rxe1 {[%clk 0:01:51.3]} 25... Bg3 {[%clk 0:01:24.8]} 26. Re2
{[%clk 0:01:47.3]} 26... Qd6 {[%clk 0:01:24.1]} 27. Qe3 {[%clk 0:01:44.3]} 27...
Ne6 {[%clk 0:01:21.4]} 28. Kh1 {[%clk 0:01:37.4]} 28... Nh5 {[%clk 0:01:18.1]}
29. Qc3 {[%clk 0:01:31.3]} 29... Bf4 {[%clk 0:01:11.5]} 30. Qc8 {[%clk
0:01:27.8]} 30... Ng3+ {[%clk 0:01:09.4]} 0-1

[Event "Early-Titled-Tuesday-Blitz-October-03-2023"]
[Site "Chess.com"]
[Date "2023.10.03"]
[Round "7"]
[White "Al_Shima"]
[Black "azikom"]
[Result "0-1"]
[WhiteElo "2339"]
[BlackElo "2572"]
[TimeControl "180+1"]
[EndTime "9:17:17 PDT"]
[Termination "azikom won by resignation"]

1. b3 {[%clk 0:03:00.9]} 1... c5 {[%clk 0:03:00.1]} 2. Bb2 {[%clk 0:03:01.3]}
2... Nc6 {[%clk 0:03:00.8]} 3. e3 {[%clk 0:03:01.8]} 3... e5 {[%clk 0:03:00.2]}
4. Bb5 {[%clk 0:03:01.2]} 4... d6 {[%clk 0:03:00]} 5. Ne2 {[%clk 0:03:00.8]}
5... Ne7 {[%clk 0:02:57.4]} 6. O-O {[%clk 0:03:00.7]} 6... a6 {[%clk 0:02:56.5]}
7. Bxc6+ {[%clk 0:03:00.7]} 7... Nxc6 {[%clk 0:02:56.2]} 8. d4 {[%clk
0:03:01.6]} 8... cxd4 {[%clk 0:02:50.4]} 9. exd4 {[%clk 0:03:02.5]} 9... Be7
{[%clk 0:02:50.6]} 10. dxe5 {[%clk 0:03:00.7]} 10... dxe5 {[%clk 0:02:50.2]} 11.
Qxd8+ {[%clk 0:02:59.7]} 11... Bxd8 {[%clk 0:02:51.1]} 12. c4 {[%clk 0:02:58.4]}
12... f6 {[%clk 0:02:49.4]} 13. Nbc3 {[%clk 0:02:58.1]} 13... Be6 {[%clk
0:02:37.7]} 14. f4 {[%clk 0:02:57.6]} 14... Bb6+ {[%clk 0:02:36.4]} 15. Kh1
{[%clk 0:02:57.5]} 15... O-O-O {[%clk 0:02:34.6]} 16. fxe5 {[%clk 0:02:54.3]}
16... Nxe5 {[%clk 0:02:34.2]} 17. h3 {[%clk 0:02:48.6]} 17... Rd2 {[%clk
0:02:27.8]} 18. Bc1 {[%clk 0:02:46.2]} 18... Rc2 {[%clk 0:02:26.1]} 19. Bf4
{[%clk 0:02:10.4]} 19... Nd3 {[%clk 0:02:22.8]} 20. Bg3 {[%clk 0:02:09.2]} 20...
Rd8 {[%clk 0:02:13.4]} 21. Na4 {[%clk 0:01:56.4]} 21... Ba7 {[%clk 0:02:11]} 22.
Nf4 {[%clk 0:01:56.2]} 22... Bf7 {[%clk 0:01:58.9]} 23. Nxd3 {[%clk 0:01:31.2]}
23... Rxd3 {[%clk 0:01:57.7]} 24. Bf4 {[%clk 0:01:27.3]} 24... Be8 {[%clk
0:01:50.4]} 25. Rac1 {[%clk 0:00:55.4]} 25... Rxa2 {[%clk 0:01:45.9]} 26. Rfd1
{[%clk 0:00:51.8]} 26... Rxd1+ {[%clk 0:01:44.2]} 27. Rxd1 {[%clk 0:00:52.7]}
27... Bxa4 {[%clk 0:01:44.3]} 28. bxa4 {[%clk 0:00:52.4]} 28... Rxa4 {[%clk
0:01:44.3]} 29. Rc1 {[%clk 0:00:45.5]} 29... Bc5 {[%clk 0:01:43.1]} 0-1

[Event "Early-Titled-Tuesday-Blitz-October-03-2023"]
[Site "Chess.com"]
[Date "2023.10.03"]
[Round "7"]
[White "Lady_Nika"]
[Black "Tssunami"]
[Result "1-0"]
[WhiteElo "2538"]
[BlackElo "2406"]
[TimeControl "180+1"]
[EndTime "9:17:19 PDT"]
[Termination "Lady_Nika won by resignation"]

1. e4 {[%clk 0:03:00.9]} 1... c5 {[%clk 0:02:56]} 2. Nc3 {[%clk 0:03:00.9]} 2...
Nc6 {[%clk 0:02:55.3]} 3. g3 {[%clk 0:03:01.2]} 3... d6 {[%clk 0:02:48.5]} 4.
Bg2 {[%clk 0:03:01.6]} 4... e5 {[%clk 0:02:49.1]} 5. d3 {[%clk 0:03:01.2]} 5...
h5 {[%clk 0:02:48.2]} 6. h4 {[%clk 0:03:00.8]} 6... Bg4 {[%clk 0:02:47.6]} 7. f3
{[%clk 0:02:53.3]} 7... Be6 {[%clk 0:02:46.6]} 8. Be3 {[%clk 0:02:53.2]} 8...
Nge7 {[%clk 0:02:40.3]} 9. Qd2 {[%clk 0:02:52.8]} 9... Nd4 {[%clk 0:02:40.3]}
10. Nce2 {[%clk 0:02:51.6]} 10... Qb6 {[%clk 0:02:38.2]} 11. c3 {[%clk
0:02:51.2]} 11... Nxe2 {[%clk 0:02:38.3]} 12. Nxe2 {[%clk 0:02:50.3]} 12... g6
{[%clk 0:02:36.9]} 13. d4 {[%clk 0:02:50.1]} 13... Bg7 {[%clk 0:02:33.4]} 14. d5
{[%clk 0:02:50.2]} 14... Bd7 {[%clk 0:02:32.9]} 15. O-O {[%clk 0:02:49.5]} 15...
f5 {[%clk 0:02:25.8]} 16. b4 {[%clk 0:02:49]} 16... f4 {[%clk 0:02:19.9]} 17.
gxf4 {[%clk 0:02:48.5]} 17... exf4 {[%clk 0:02:20.2]} 18. Nxf4 {[%clk
0:02:48.2]} 18... Qc7 {[%clk 0:02:09.4]} 19. bxc5 {[%clk 0:02:46.9]} 19... O-O
{[%clk 0:02:02.2]} 20. Rac1 {[%clk 0:02:41.6]} 20... Rae8 {[%clk 0:01:59.3]} 21.
c4 {[%clk 0:02:41.2]} 21... Qb8 {[%clk 0:01:44.2]} 22. cxd6 {[%clk 0:02:37.7]}
22... Qxd6 {[%clk 0:01:44.3]} 23. c5 {[%clk 0:02:37.7]} 23... Qf6 {[%clk
0:01:44.6]} 24. d6 {[%clk 0:02:37.9]} 24... Nc6 {[%clk 0:01:41.8]} 25. Nd5
{[%clk 0:02:37.5]} 25... Qxh4 {[%clk 0:01:41.4]} 26. Qf2 {[%clk 0:02:36.1]}
26... Qd8 {[%clk 0:01:36.4]} 27. Qg3 {[%clk 0:02:35.3]} 27... Ne5 {[%clk
0:01:31.9]} 28. Bg5 {[%clk 0:02:21.4]} 28... Qa5 {[%clk 0:01:24.5]} 29. Rc2
{[%clk 0:02:08.3]} 29... Kh7 {[%clk 0:01:19.4]} 30. Ne7 {[%clk 0:02:05.4]} 30...
Qa4 {[%clk 0:01:04.7]} 31. Rd2 {[%clk 0:02:01.8]} 31... Qb4 {[%clk 0:01:03]} 32.
Rd5 {[%clk 0:02:01.2]} 32... Nf7 {[%clk 0:01:01.1]} 33. Bd2 {[%clk 0:01:58.5]}
33... Bd4+ {[%clk 0:00:57.1]} 34. Kh1 {[%clk 0:01:57.8]} 34... Qxd2 {[%clk
0:00:53.8]} 35. Qxg6+ {[%clk 0:01:57.5]} 35... Kh8 {[%clk 0:00:54.3]} 36. Rxh5+
{[%clk 0:01:57.1]} 1-0

[Event "Early-Titled-Tuesday-Blitz-October-03-2023"]
[Site "Chess.com"]
[Date "2023.10.03"]
[Round "7"]
[White "Zohid6"]
[Black "viktorskliarov"]
[Result "0-1"]
[WhiteElo "2788"]
[BlackElo "2664"]
[TimeControl "180+1"]
[EndTime "9:17:30 PDT"]
[Termination "viktorskliarov won by resignation"]

1. d4 {[%clk 0:03:00.9]} 1... Nf6 {[%clk 0:03:00]} 2. Nc3 {[%clk 0:03:00.8]}
2... e6 {[%clk 0:03:00.6]} 3. e4 {[%clk 0:03:00.7]} 3... d5 {[%clk 0:03:00.4]}
4. e5 {[%clk 0:03:01.1]} 4... Nfd7 {[%clk 0:03:00.2]} 5. Nce2 {[%clk 0:03:01.6]}
5... c5 {[%clk 0:03:00.5]} 6. c3 {[%clk 0:03:02.4]} 6... Nc6 {[%clk 0:03:01.2]}
7. Nf3 {[%clk 0:03:03.1]} 7... f6 {[%clk 0:03:00]} 8. Nf4 {[%clk 0:03:03.2]}
8... Qe7 {[%clk 0:02:50.5]} 9. Bd3 {[%clk 0:03:02.9]} 9... cxd4 {[%clk
0:02:22.8]} 10. cxd4 {[%clk 0:02:59.3]} 10... fxe5 {[%clk 0:02:21.9]} 11. dxe5
{[%clk 0:02:59.5]} 11... Nc5 {[%clk 0:02:18.3]} 12. Bb1 {[%clk 0:02:55.6]} 12...
g6 {[%clk 0:02:15.6]} 13. O-O {[%clk 0:02:52.6]} 13... Bg7 {[%clk 0:02:15.1]}
14. Qe2 {[%clk 0:02:35.8]} 14... O-O {[%clk 0:02:10.4]} 15. h4 {[%clk
0:02:35.5]} 15... b6 {[%clk 0:02:07.5]} 16. Rd1 {[%clk 0:02:27.8]} 16... Ba6
{[%clk 0:02:05.5]} 17. Qe3 {[%clk 0:02:28.3]} 17... d4 {[%clk 0:01:28.9]} 18.
Qe1 {[%clk 0:02:14.4]} 18... Rad8 {[%clk 0:01:16.3]} 19. h5 {[%clk 0:02:05.5]}
19... g5 {[%clk 0:01:15.2]} 20. h6 {[%clk 0:02:03]} 20... gxf4 {[%clk
0:01:09.6]} 21. hxg7 {[%clk 0:02:02.3]} 21... Qxg7 {[%clk 0:01:09.1]} 22. b4
{[%clk 0:01:58.8]} 22... Nxb4 {[%clk 0:00:57.8]} 23. Qe4 {[%clk 0:01:42.6]}
23... Nxe4 {[%clk 0:00:57.4]} 24. Bxe4 {[%clk 0:01:38.6]} 24... Bb7 {[%clk
0:00:52.1]} 25. Bxb7 {[%clk 0:01:31.4]} 25... Qxb7 {[%clk 0:00:51.4]} 26. Bb2
{[%clk 0:01:32.3]} 26... d3 {[%clk 0:00:49.8]} 27. Nd4 {[%clk 0:01:30.7]} 27...
Rxd4 {[%clk 0:00:47.2]} 28. Bxd4 {[%clk 0:01:30.2]} 28... Nc2 {[%clk 0:00:47.4]}
29. Rxd3 {[%clk 0:01:28]} 29... Nxa1 {[%clk 0:00:47.1]} 30. Bxa1 {[%clk
0:01:28.9]} 30... Qe4 {[%clk 0:00:45.2]} 31. Rd7 {[%clk 0:01:28.3]} 31... Qe1+
{[%clk 0:00:44.8]} 0-1

[Event "Early-Titled-Tuesday-Blitz-October-03-2023"]
[Site "Chess.com"]
[Date "2023.10.03"]
[Round "7"]
[White "JoakimVonAnd"]
[Black "NovoselovRoman"]
[Result "1/2-1/2"]
[WhiteElo "2741"]
[BlackElo "2613"]
[TimeControl "180+1"]
[EndTime "9:17:56 PDT"]
[Termination "Game drawn by repetition"]

1. c4 {[%clk 0:03:00.9]} 1... e6 {[%clk 0:02:59.5]} 2. Nf3 {[%clk 0:02:59.6]}
2... d5 {[%clk 0:02:58.7]} 3. g3 {[%clk 0:02:58.4]} 3... Nf6 {[%clk 0:02:53.9]}
4. Bg2 {[%clk 0:02:55.7]} 4... Be7 {[%clk 0:02:53.7]} 5. O-O {[%clk 0:02:55.2]}
5... O-O {[%clk 0:02:54]} 6. b3 {[%clk 0:02:55.7]} 6... a5 {[%clk 0:02:52.2]} 7.
d4 {[%clk 0:02:52.3]} 7... a4 {[%clk 0:02:51.5]} 8. Bb2 {[%clk 0:02:49.4]} 8...
Nc6 {[%clk 0:02:50]} 9. Nc3 {[%clk 0:02:46.7]} 9... a3 {[%clk 0:02:43]} 10. Bc1
{[%clk 0:02:46.9]} 10... Ne4 {[%clk 0:02:35.1]} 11. Bd2 {[%clk 0:02:36.7]} 11...
Nxd2 {[%clk 0:02:34]} 12. Qxd2 {[%clk 0:02:36]} 12... Bf6 {[%clk 0:02:32.3]} 13.
Rad1 {[%clk 0:02:32.3]} 13... Na5 {[%clk 0:02:17.1]} 14. Qd3 {[%clk 0:02:23.3]}
14... b6 {[%clk 0:02:10.2]} 15. e4 {[%clk 0:02:15.4]} 15... dxc4 {[%clk
0:02:00.6]} 16. bxc4 {[%clk 0:02:16.3]} 16... Ba6 {[%clk 0:02:01]} 17. Nb5
{[%clk 0:02:15.9]} 17... c6 {[%clk 0:01:39.3]} 18. Nxa3 {[%clk 0:02:14.7]} 18...
Be7 {[%clk 0:01:39.8]} 19. Rc1 {[%clk 0:02:06.7]} 19... Bxa3 {[%clk 0:01:37]}
20. Qxa3 {[%clk 0:02:07.6]} 20... Bxc4 {[%clk 0:01:32.6]} 21. Rfd1 {[%clk
0:01:45.4]} 21... Be2 {[%clk 0:01:27.3]} 22. Re1 {[%clk 0:01:32.8]} 22... Bxf3
{[%clk 0:01:26.3]} 23. Bxf3 {[%clk 0:01:33.7]} 23... Qxd4 {[%clk 0:01:26.4]} 24.
e5 {[%clk 0:01:34.4]} 24... Rac8 {[%clk 0:01:13.8]} 25. Re4 {[%clk 0:01:32.3]}
25... Qd2 {[%clk 0:00:55.5]} 26. Rd1 {[%clk 0:01:29.5]} 26... Qc2 {[%clk
0:00:46.5]} 27. Rc1 {[%clk 0:01:15.7]} 27... Qd2 {[%clk 0:00:45.4]} 28. Rd1
{[%clk 0:01:16.2]} 28... Qc2 {[%clk 0:00:45.2]} 29. Rc1 {[%clk 0:01:04.5]} 29...
Qd2 {[%clk 0:00:44.9]} 1/2-1/2

[Event "Early-Titled-Tuesday-Blitz-October-03-2023"]
[Site "Chess.com"]
[Date "2023.10.03"]
[Round "7"]
[White "Markov_Mikhail"]
[Black "Caroexpert"]
[Result "1-0"]
[WhiteElo "2710"]
[BlackElo "2505"]
[TimeControl "180+1"]
[EndTime "9:17:56 PDT"]
[Termination "Markov_Mikhail won by resignation"]

1. c4 {[%clk 0:03:00.9]} 1... e6 {[%clk 0:02:51.5]} 2. Nf3 {[%clk 0:03:00.3]}
2... d5 {[%clk 0:02:51.3]} 3. g3 {[%clk 0:02:59.5]} 3... Nf6 {[%clk 0:02:48.5]}
4. Bg2 {[%clk 0:02:59.8]} 4... Bd6 {[%clk 0:02:44.4]} 5. O-O {[%clk 0:02:58.8]}
5... dxc4 {[%clk 0:02:43.6]} 6. Qa4+ {[%clk 0:02:56.5]} 6... Nbd7 {[%clk
0:02:41.4]} 7. Qxc4 {[%clk 0:02:55]} 7... c5 {[%clk 0:02:41.7]} 8. d4 {[%clk
0:02:54.3]} 8... O-O {[%clk 0:02:39.7]} 9. Rd1 {[%clk 0:02:54]} 9... Qe7 {[%clk
0:02:31]} 10. Nc3 {[%clk 0:02:51.1]} 10... a6 {[%clk 0:02:29.9]} 11. dxc5 {[%clk
0:02:46]} 11... Nxc5 {[%clk 0:02:28.6]} 12. Bg5 {[%clk 0:02:40.1]} 12... b5
{[%clk 0:02:18.4]} 13. Qh4 {[%clk 0:02:39.8]} 13... Bb7 {[%clk 0:02:18.9]} 14.
a4 {[%clk 0:02:28]} 14... b4 {[%clk 0:02:01.4]} 15. Bxf6 {[%clk 0:01:53.5]}
15... gxf6 {[%clk 0:01:37.6]} 16. Qxb4 {[%clk 0:01:53.6]} 16... Rab8 {[%clk
0:01:32]} 17. Qh4 {[%clk 0:01:46.2]} 17... Kh8 {[%clk 0:01:26.4]} 18. Rxd6
{[%clk 0:01:41.6]} 18... Qxd6 {[%clk 0:01:23.8]} 19. Qxf6+ {[%clk 0:01:42.2]}
19... Kg8 {[%clk 0:01:24.7]} 20. Rd1 {[%clk 0:01:42.1]} 20... Ne4 {[%clk
0:01:17.7]} 21. Qh4 {[%clk 0:01:09.1]} 21... Qxd1+ {[%clk 0:01:07.6]} 22. Nxd1
{[%clk 0:01:08.8]} 22... Rbc8 {[%clk 0:01:03.1]} 23. Nc3 {[%clk 0:00:56.4]}
23... f5 {[%clk 0:00:56.9]} 24. Ng5 {[%clk 0:00:46.3]} 24... Nxg5 {[%clk
0:00:53]} 25. Qxg5+ {[%clk 0:00:44.9]} 1-0

[Event "Early-Titled-Tuesday-Blitz-October-03-2023"]
[Site "Chess.com"]
[Date "2023.10.03"]
[Round "7"]
[White "RETURNOFTHELAGGER"]
[Black "Marcin"]
[Result "1-0"]
[WhiteElo "2671"]
[BlackElo "2500"]
[TimeControl "180+1"]
[EndTime "9:17:59 PDT"]
[Termination "RETURNOFTHELAGGER won by checkmate"]

1. e4 {[%clk 0:02:39.9]} 1... e5 {[%clk 0:02:57.2]} 2. Nc3 {[%clk 0:02:38.3]}
2... Nf6 {[%clk 0:02:56.8]} 3. f4 {[%clk 0:02:38.7]} 3... d5 {[%clk 0:02:55.3]}
4. fxe5 {[%clk 0:02:38.5]} 4... Nxe4 {[%clk 0:02:55.6]} 5. Qf3 {[%clk
0:02:38.1]} 5... Nxc3 {[%clk 0:02:50.4]} 6. dxc3 {[%clk 0:02:39]} 6... Nc6
{[%clk 0:02:48.3]} 7. Bf4 {[%clk 0:02:37.5]} 7... Bf5 {[%clk 0:02:45.9]} 8.
O-O-O {[%clk 0:02:35.1]} 8... Be4 {[%clk 0:02:44.2]} 9. Qf2 {[%clk 0:02:33]}
9... Be7 {[%clk 0:02:43]} 10. Nf3 {[%clk 0:02:26.2]} 10... O-O {[%clk
0:02:40.1]} 11. Kb1 {[%clk 0:02:12.6]} 11... Qd7 {[%clk 0:02:36.7]} 12. Bd3
{[%clk 0:02:04.4]} 12... Bxd3 {[%clk 0:02:35.6]} 13. Rxd3 {[%clk 0:02:04.8]}
13... Rad8 {[%clk 0:02:34.5]} 14. h4 {[%clk 0:02:01.6]} 14... Qg4 {[%clk
0:02:31.2]} 15. g3 {[%clk 0:01:53.3]} 15... h6 {[%clk 0:02:29.2]} 16. Nh2 {[%clk
0:01:41.7]} 16... Qe6 {[%clk 0:02:28.1]} 17. g4 {[%clk 0:01:38]} 17... f6 {[%clk
0:02:23.7]} 18. exf6 {[%clk 0:01:35.7]} 18... Qxf6 {[%clk 0:02:23.1]} 19. Rf3
{[%clk 0:01:33.7]} 19... Qxh4 {[%clk 0:02:22.5]} 20. Qg2 {[%clk 0:01:31.1]}
20... d4 {[%clk 0:02:10.9]} 21. Rh3 {[%clk 0:01:23.3]} 21... Qf6 {[%clk
0:02:10.3]} 22. Bc1 {[%clk 0:01:23.1]} 22... dxc3 {[%clk 0:02:09.8]} 23. Rxc3
{[%clk 0:01:22.2]} 23... Qf2 {[%clk 0:01:55.9]} 24. Qh3 {[%clk 0:01:09.8]} 24...
Bf6 {[%clk 0:01:44.9]} 25. Rf3 {[%clk 0:01:05.5]} 25... Qc5 {[%clk 0:01:45]} 26.
Rhf1 {[%clk 0:00:56.4]} 26... Nd4 {[%clk 0:01:44]} 27. R3f2 {[%clk 0:00:53.8]}
27... Ne6 {[%clk 0:01:42]} 28. Nf3 {[%clk 0:00:52.6]} 28... Rd5 {[%clk 0:01:36]}
29. g5 {[%clk 0:00:50.2]} 29... Nxg5 {[%clk 0:01:33]} 30. Nxg5 {[%clk
0:00:50.5]} 30... hxg5 {[%clk 0:01:29.3]} 31. Qe6+ {[%clk 0:00:46]} 31... Rf7
{[%clk 0:01:29.4]} 32. Rxf6 {[%clk 0:00:44.5]} 32... gxf6 {[%clk 0:01:29.5]} 33.
Rxf6 {[%clk 0:00:44.1]} 33... Qe7 {[%clk 0:01:24]} 34. Rg6+ {[%clk 0:00:37.4]}
34... Kh7 {[%clk 0:01:22.1]} 35. Rh6+ {[%clk 0:00:36.2]} 35... Kg7 {[%clk
0:01:22.8]} 36. Qg6+ {[%clk 0:00:34.3]} 36... Kf8 {[%clk 0:01:23.2]} 37. Rh8#
{[%clk 0:00:34.6]} 1-0

[Event "Early-Titled-Tuesday-Blitz-October-03-2023"]
[Site "Chess.com"]
[Date "2023.10.03"]
[Round "7"]
[White "Daffidollchess2"]
[Black "DanyKopy"]
[Result "1-0"]
[WhiteElo "2713"]
[BlackElo "2562"]
[TimeControl "180+1"]
[EndTime "9:18:07 PDT"]
[Termination "Daffidollchess2 won by resignation"]

1. e4 {[%clk 0:03:00.4]} 1... c5 {[%clk 0:02:59.7]} 2. Nf3 {[%clk 0:03:00.5]}
2... Nc6 {[%clk 0:03:00.3]} 3. d4 {[%clk 0:02:59.7]} 3... cxd4 {[%clk
0:03:00.8]} 4. Nxd4 {[%clk 0:03:00.2]} 4... e5 {[%clk 0:03:01.7]} 5. Nb5 {[%clk
0:03:00.1]} 5... d6 {[%clk 0:03:02.2]} 6. c4 {[%clk 0:03:00.4]} 6... f5 {[%clk
0:02:56.4]} 7. exf5 {[%clk 0:02:56.8]} 7... Bxf5 {[%clk 0:02:57.3]} 8. Bd3
{[%clk 0:02:56.2]} 8... Be6 {[%clk 0:02:56.9]} 9. N1c3 {[%clk 0:02:54.1]} 9...
a6 {[%clk 0:02:56.5]} 10. Na3 {[%clk 0:02:53.8]} 10... Nf6 {[%clk 0:02:56.4]}
11. Bg5 {[%clk 0:02:52.2]} 11... Be7 {[%clk 0:02:54.4]} 12. O-O {[%clk
0:02:50.3]} 12... O-O {[%clk 0:02:52.6]} 13. Nc2 {[%clk 0:02:49.8]} 13... e4
{[%clk 0:02:34.5]} 14. Be2 {[%clk 0:02:31.8]} 14... d5 {[%clk 0:02:33]} 15. Bxf6
{[%clk 0:02:30.2]} 15... Bxf6 {[%clk 0:02:24.3]} 16. cxd5 {[%clk 0:02:27]} 16...
Bxc3 {[%clk 0:02:21.8]} 17. dxe6 {[%clk 0:02:16.6]} 17... Bxb2 {[%clk
0:02:15.6]} 18. Rb1 {[%clk 0:02:16.2]} 18... Qf6 {[%clk 0:02:10.6]} 19. Qd5
{[%clk 0:02:10.6]} 19... Kh8 {[%clk 0:01:40.4]} 20. Qxe4 {[%clk 0:02:05.5]}
20... Nd4 {[%clk 0:01:33.6]} 21. Nxd4 {[%clk 0:01:59.3]} 21... Bxd4 {[%clk
0:01:34.5]} 22. Rxb7 {[%clk 0:01:54.2]} 22... Bxf2+ {[%clk 0:01:29.4]} 23. Kh1
{[%clk 0:01:54.1]} 23... Rae8 {[%clk 0:01:21.9]} 24. Bc4 {[%clk 0:01:29.6]}
24... Re7 {[%clk 0:01:07.9]} 25. Rb3 {[%clk 0:01:18]} 25... Rc8 {[%clk
0:00:22.4]} 26. Rf3 {[%clk 0:01:14.4]} 1-0